bitfinex-derivatives/quotes_SOLF0:USTF0_20250901
["timestamp","ask_amount","ask_price","bid_price","bid_amount"]
[1756726224229,0.11,199.22,199.15,0.03224287]
[1756726224430,89.04,199.22,199.15,7.63224287]
[1756726224630,109.32,199.23,199.15,7.63224287]
[1756726224828,2.32885583,199.25,199.15,7.63224287]
[1756726225130,124.64,199.23,199.15,7.63224287]
[1756726226832,2.32885583,199.25,199.15,7.63224287]
[1756726227028,24.32,199.24,199.15,7.63224287]
[1756726228833,2.32885583,199.25,199.15,7.63224287]
[1756726229138,23.93,199.25,199.15,7.63224287]
[1756726229338,0.11,199.25,199.15,7.63224287]
[1756726230337,66.98,199.26,199.15,7.63224287]
[1756726230537,87.22,199.27,199.18,7.6]
[1756726231337,87.22,199.27,199.21,0.03286683]
[1756726232338,0.11,199.28,199.21,0.03286683]
[1756726232539,2.21885583,199.29,199.21,7.63286683]
[1756726232740,337.34,199.31,199.21,7.63286683]
[1756726233039,461.78,199.31,199.21,7.63286683]
[1756726233637,337.34,199.31,199.26,2.21885583]
[1756726233944,337.34,199.31,199.27,7.6]
[1756726235340,0.11,199.36,199.25,2.21885583]
[1756726235546,21.78,199.36,199.28,9.81885583]
[1756726236435,0.11,199.39,199.28,9.81885583]
[1756726236638,0.11,199.42,199.31,9.81885583]
[1756726236839,124.4,199.41,199.31,9.81885583]
[1756726237038,124.4,199.41,199.31,7.6]
[1756726237242,124.4,199.41,199.32,2.21885583]
[1756726237442,124.38,199.4,199.32,2.21885583]
[1756726237645,124.36,199.4,199.32,2.21885583]
[1756726238040,124.36,199.4,199.34,0.03307902]
[1756726238849,124.44,199.4,199.34,0.03307902]
[1756726239946,0.08,199.37,199.34,0.03307902]
[1756726240250,2.29885583,199.35,199.34,0.03307902]
[1756726240663,0.08,199.35,199.34,0.03307902]
[1756726242550,0.58,199.35,199.34,0.03307902]
[1756726242751,0.58,199.35,199.23,2.21885583]
[1756726242951,2.21885583,199.33,199.23,2.21885583]
[1756726243951,0.04,199.32,199.22,7.4]
[1756726244253,2.29501729,199.3,199.19,2.21885583]
[1756726244648,2.25885583,199.3,199.19,2.21885583]
[1756726244955,0.03749093,199.26,199.19,2.21885583]
[1756726246458,0.03749093,199.26,199.22,2.21885583]
[1756726246757,9.6,199.28,199.22,2.21885583]
[1756726246956,11.62,199.31,199.23,7.4]
[1756726247154,0.03435694,199.26,199.22,2.21885583]
[1756726247354,0.03435694,199.26,199.23,7.4]
[1756726248054,0.03435694,199.26,199.22,2.21885583]
[1756726248449,0.03435694,199.26,199.19,9.61885583]
[1756726253253,0.03435694,199.26,199.16,2.21885583]
[1756726253454,0.03435694,199.26,199.16,7.4]
[1756726253754,2.21885583,199.24,199.16,7.4]
[1756726253965,0.03223328,199.23,199.16,7.4]
[1756726261657,0.03223328,199.23,199.08,4.18899286]
[1756726261858,2.25108911,199.23,199.12,7.4]
[1756726262065,2.21885583,199.23,199.12,7.4]
[1756726262458,0.03501926,199.19,199.12,7.4]
[1756726263568,0.03501926,199.19,199.07,7.4]
[1756726263863,2.26885583,199.17,199.07,7.4]
[1756726264065,3.5,199.16,199.06,2.21885583]
[1756726264363,3.5,199.16,199.04,7.4]
[1756726264364,0.03223013,199.14,199.04,7.4]
[1756726264564,0.03223013,199.14,199.04,9.61885583]
[1756726265167,0.03223013,199.14,199.04,7.4]
[1756726265366,0.03223013,199.14,199.04,9.61885583]
[1756726265569,2.25108596,199.14,199.04,7.4]
[1756726267866,0.03223013,199.14,199.04,7.4]
[1756726268062,2.21223013,199.14,199.04,7.4]
[1756726269970,0.03223013,199.14,199.06,2.21885583]
[1756726270170,0.03223013,199.14,199.07,8.09]
[1756726270370,0.48,199.17,199.07,8.09]
[1756726270771,0.03564073,199.12,199.07,8.09]
[1756726272065,0.03564073,199.12,199.02,8.09]
[1756726272263,0.03564073,199.12,199.08,2.21885583]
[1756726272572,0.14,199.18,199.09,8.09]
[1756726272770,0.03239031,199.12,199.09,8.09]
[1756726273072,0.03239031,199.12,199.08,2.21885583]
[1756726273371,0.03239031,199.12,199.06,10.30885583]
[1756726273766,0.03239031,199.12,199.07,8.09]
[1756726274073,0.03239031,199.12,199.09,2.21885583]
[1756726274473,0.03239031,199.12,199.1,8.09]
[1756726274668,0.03239031,199.12,199.09,2.21885583]
[1756726274972,2.21885583,199.27,199.1,10.30885583]
[1756726275172,18.7,199.26,199.16,10.30885583]
[1756726276574,18.7,199.26,199.19,0.03702846]
[1756726280881,0.1,199.29,199.19,0.03702846]
[1756726281178,123.62,199.28,199.19,0.03702846]
[1756726281572,0.1,199.25,199.19,0.03702846]
[1756726281778,0.1,199.22,199.19,0.03702846]
[1756726281978,123.6,199.21,199.19,0.03702846]
[1756726282178,0.1,199.2,199.19,0.03702846]
[1756726283676,0.6,199.2,199.19,0.03702846]
[1756726283882,2.21885583,199.17,199.06,2.21885583]
[1756726284078,2.21885583,199.17,199.06,8.09]
[1756726284278,2.21885583,199.14,199.06,8.09]
[1756726284781,10.41885583,199.14,199.06,8.09]
[1756726285181,0.03830397,199.12,199.03,2.21885583]
[1756726286583,0.03830397,199.12,199.02,8.09]
[1756726288879,2.21885583,199.11,198.99,8.09]
[1756726289486,0.06,199.12,198.99,8.09]
[1756726289786,20.48,199.15,199.05,8.09]
[1756726289986,20.57,199.15,199.05,8.09]
[1756726290181,2.21885583,199.13,199.05,8.09]
[1756726290383,2.30885583,199.13,199.0,10.30885583]
[1756726290677,2.30885583,199.13,199.01,8.09]
[1756726291086,2.30885583,199.13,199.05,0.03655796]
[1756726292281,2.21885583,199.13,199.05,0.03655796]
[1756726295691,0.09,199.12,199.05,0.03655796]
[1756726296382,2.30885583,199.1,199.05,0.03655796]
[1756726297083,42.34,199.09,199.05,0.03655796]
[1756726297590,42.34,199.09,199.01,8.09]
[1756726297790,42.34,199.09,199.05,0.03270527]
[1756726298190,2.21885583,199.11,199.05,0.03270527]
[1756726298391,116.78,199.1,199.05,0.03270527]
[1756726298894,0.1,199.09,199.05,0.03270527]
[1756726300894,123.5,199.09,199.05,0.03270527]
[1756726301906,123.4,199.09,199.05,0.03270527]
[1756726303596,2.21885583,199.11,199.05,0.03270527]
[1756726303793,22.06,199.1,199.05,0.03270527]
[1756726303990,22.16,199.1,199.05,0.03270527]
[1756726304300,42.82,199.1,199.05,8.20270527]
[1756726304494,42.82,199.1,199.05,0.03270527]
[1756726305700,2.31885583,199.13,199.05,0.03270527]
[1756726305898,62.3,199.12,199.05,0.03270527]
[1756726306099,2.31885583,199.13,199.05,0.03270527]
[1756726306296,123.3,199.12,199.05,0.03270527]
[1756726307096,0.1,199.13,199.05,0.03270527]
[1756726307296,339.87885583,199.17,199.05,10.4215611]
[1756726307599,123.32,199.18,199.09,8.17]
[1756726308000,123.32,199.18,199.12,0.0327159]
[1756726309004,108.92973431,199.19,199.12,0.0327159]
[1756726309207,123.34,199.18,199.12,0.0327159]
[1756726310299,123.32,199.17,199.12,8.2027159]
[1756726311706,123.32,199.17,199.12,0.0327159]
[1756726313104,123.3,199.17,199.12,0.0327159]
[1756726313307,123.3,199.17,199.13,8.17]
[1756726313801,123.3,199.17,199.12,0.0327159]
[1756726316810,123.4,199.17,199.12,0.0327159]
[1756726317509,123.3,199.17,199.12,0.0327159]
[1756726317713,0.1,199.16,199.12,0.0327159]
[1756726320414,123.3,199.17,199.12,0.0327159]
[1756726321113,108.92973431,199.19,199.12,0.0327159]
[1756726321414,117.92,199.18,199.12,0.0327159]
[1756726322409,118.01,199.18,199.12,0.0327159]
[1756726323911,2.21885583,199.16,199.12,0.0327159]
[1756726324214,0.09,199.15,199.12,0.0327159]
[1756726324413,2.30885583,199.13,199.12,0.0327159]
[1756726324614,125.44885583,199.13,199.12,0.0327159]
[1756726333223,125.44885583,199.13,199.02,2.21885583]
[1756726333224,0.09,199.12,199.0,2.21885583]
[1756726334427,0.03217814,199.08,199.0,2.21885583]
[1756726334630,123.11217814,199.08,199.0,2.21885583]
[1756726334829,123.11217814,199.08,199.0,6.74125583]
[1756726337924,123.11217814,199.08,198.99,7.46]
[1756726337925,0.12217814,199.08,198.99,7.46]
[1756726338128,5.62,199.07,198.98,2.21885583]
[1756726338327,0.12217814,199.08,198.98,2.21885583]
[1756726338632,7.46,199.07,198.99,7.46]
[1756726338827,14.26,199.06,198.99,7.46]
[1756726342135,0.09,199.05,198.94,11.66369228]
[1756726342429,0.09,199.05,198.96,2.21885583]
[1756726342835,0.03364341,199.01,198.96,2.21885583]
[1756726343932,0.03364341,199.01,198.96,9.67885583]
[1756726345438,0.03364341,199.01,198.96,7.46]
[1756726349544,0.03364341,199.01,198.95,9.67885583]
[1756726349839,0.03364341,199.01,198.95,2.21885583]
[1756726350044,0.03364341,199.01,198.96,7.46]
[1756726350244,0.03364341,199.01,198.95,2.21885583]
[1756726350444,0.03364341,199.01,198.95,9.67885583]
[1756726352141,0.03364341,199.01,198.95,7.46]
[1756726354443,0.03364341,199.01,198.92,9.67885583]
[1756726355242,0.12364341,199.01,198.9,9.67885583]
[1756726355648,0.09,199.01,198.9,9.67885583]
[1756726355950,0.03671936,198.97,198.9,9.67885583]
[1756726358142,0.03671936,198.97,198.89,4.5249]
[1756726358346,0.03671936,198.97,198.9,9.67885583]
[1756726359353,0.03671936,198.97,198.91,7.76]
[1756726366161,0.03671936,198.97,198.91,12.2846]
[1756726366361,0.87452567,199.1,198.96,2.21885583]
[1756726366563,0.12,199.09,198.97,7.76]
[1756726366763,0.87452567,199.1,199.02,9.97885583]
[1756726366959,337.68,199.12,199.03,7.76]
[1756726367261,337.68,199.12,199.06,7.76]
[1756726367658,337.68,199.12,199.07,0.03567182]
[1756726367862,337.8,199.12,199.07,0.03567182]
[1756726369063,337.68,199.12,199.07,0.03567182]
[1756726369265,0.12,199.11,199.07,0.03567182]
[1756726369660,337.68,199.12,199.07,0.03567182]
[1756726370062,123.08,199.11,199.07,0.03567182]
[1756726370355,0.12,199.08,199.07,0.03567182]
[1756726370562,2.33885583,199.08,199.07,0.03567182]
[1756726370760,123.08,199.08,199.07,0.03567182]
[1756726371055,2.21885583,199.11,199.07,0.03567182]
[1756726371056,123.08,199.09,199.07,0.03567182]
[1756726372058,123.2,199.09,199.07,0.03567182]
[1756726372265,123.08,199.09,199.07,0.03567182]
[1756726372566,123.08,199.08,199.07,0.03567182]
[1756726374966,123.2,199.08,199.07,0.03567182]
[1756726375163,125.91885583,199.08,198.96,2.21885583]
[1756726375366,125.41885583,199.08,198.95,7.76]
[1756726376258,0.03706493,199.03,198.95,7.76]
[1756726376457,123.89706493,199.03,198.95,7.76]
[1756726379472,123.8,199.02,198.95,7.76]
[1756726379871,0.03706493,199.03,198.95,7.76]
[1756726380169,123.83706493,199.03,198.95,7.76]
[1756726380472,123.83706493,199.03,198.88,18.96369228]
[1756726380473,0.03706493,199.03,199.0,2.21885583]
[1756726380668,0.03706493,199.03,199.01,7.76]
[1756726380971,338.55444876,199.12,199.03,2.21885583]
[1756726381166,124.1,199.11,199.04,4.63619971]
[1756726381468,124.1,199.11,199.03,9.97885583]
[1756726381664,337.68,199.12,199.04,4.63617586]
[1756726381965,337.68,199.12,199.05,4.67000011]
[1756726381966,461.76,199.12,199.05,4.67000011]
[1756726382166,461.76,199.12,199.06,4.63617586]
[1756726382369,461.76,199.12,199.07,4.63617586]
[1756726382568,461.76,199.12,199.08,4.63617586]
[1756726382765,461.76,199.12,199.09,4.63617586]
[1756726382961,461.76,199.12,199.1,4.63617586]
[1756726383267,461.87,199.12,199.11,4.63617586]
[1756726383468,461.87,199.12,199.11,4.52617586]
[1756726383868,462.74437186,199.12,199.11,4.52617586]
[1756726384570,463.24437186,199.12,199.07,0.03287161]
[1756726384763,2.21885583,199.09,199.07,0.03287161]
[1756726384966,2.21885583,199.09,198.92,7.76]
[1756726385171,2.21885583,199.04,198.92,9.97885583]
[1756726385473,124.3,199.03,198.92,9.97885583]
[1756726386368,124.3,199.03,198.92,7.76]
[1756726386565,0.03462206,198.99,198.92,7.76]
[1756726386870,124.28,198.98,198.92,7.76]
[1756726388272,124.28,198.98,198.89,4.5251]
[1756726388468,124.28,198.98,198.88,7.76]
[1756726388772,124.28,198.98,198.88,9.97885583]
[1756726389074,0.03190347,198.95,198.88,9.97885583]
[1756726389772,0.03190347,198.95,198.89,7.96]
[1756726390678,0.03190347,198.95,198.86,2.21885583]
[1756726390873,0.03190347,198.95,198.85,7.96]
[1756726390874,0.03190347,198.95,198.87,7.96]
[1756726391074,121.33885583,198.99,198.88,2.21885583]
[1756726391368,0.03367943,198.93,198.88,2.21885583]
[1756726393071,0.03367943,198.93,198.87,7.96]
[1756726393266,0.03367943,198.93,198.84,12.4861]
[1756726393467,0.03367943,198.93,198.85,2.21885583]
[1756726394476,0.03367943,198.93,198.84,14.70495583]
[1756726394876,0.03367943,198.93,198.85,4.5259]
[1756726395871,8.92,198.92,198.82,4.5266]
[1756726396076,8.92,198.92,198.83,2.21885583]
[1756726396271,2.21885583,198.96,198.83,2.21885583]
[1756726396575,0.0354519,198.89,198.83,2.21885583]
[1756726397079,0.0354519,198.89,198.81,2.21885583]
[1756726398075,0.0354519,198.89,198.81,6.74575583]
[1756726398274,0.0354519,198.89,198.82,2.21885583]
[1756726398476,0.0354519,198.89,198.8,7.96]
[1756726398778,0.0354519,198.89,198.8,10.17885583]
[1756726398976,0.0354519,198.89,198.8,2.21885583]
[1756726399272,0.0354519,198.89,198.72,4.20369228]
[1756726399273,0.0354519,198.89,198.72,7.96]
[1756726399482,0.0354519,198.89,198.75,7.96]
[1756726399774,2.21885583,198.9,198.78,7.96]
[1756726399972,2.21885583,198.9,198.74,12.4884]
[1756726400167,0.0319565,198.84,198.74,12.4884]
[1756726400372,0.2519565,198.84,198.75,2.21885583]
[1756726400572,2.3719565,198.84,198.78,2.21885583]
[1756726400783,2.3719565,198.84,198.78,10.17885583]
[1756726401078,368.01,198.98,198.78,10.17885583]
[1756726401079,2.26,198.88,198.8,2.21885583]
[1756726401278,0.03729368,198.83,198.79,2.21885583]
[1756726401474,0.03729368,198.83,198.8,7.96]
[1756726401667,0.22,198.88,198.79,2.21885583]
[1756726401875,0.22,198.88,198.78,2.21885583]
[1756726402075,0.03613132,198.83,198.78,2.21885583]
[1756726402269,0.03613132,198.83,198.79,7.96]
[1756726402670,0.03613132,198.83,198.79,2.21885583]
[1756726403078,0.03613132,198.83,198.8,7.96]
[1756726403275,0.03613132,198.83,198.78,2.21885583]
[1756726403475,0.03613132,198.83,198.82,7.96]
[1756726403878,32.02,198.89,198.82,7.96]
[1756726404276,0.03334697,198.84,198.81,2.21885583]
[1756726404872,0.03334697,198.84,198.81,10.17885583]
[1756726405083,0.03334697,198.84,198.75,2.21885583]
[1756726405684,2.21885583,198.86,198.75,2.21885583]
[1756726405878,0.03332615,198.81,198.75,10.17885583]
[1756726408480,0.03332615,198.81,198.79,7.96]
[1756726408680,337.86,198.98,198.78,2.21885583]
[1756726408876,2.21885583,198.91,198.81,2.21885583]
[1756726409077,35.06,198.9,198.81,2.21885583]
[1756726409273,35.06,198.9,198.79,7.96]
[1756726409477,35.06,198.9,198.81,10.17885583]
[1756726409678,35.06,198.9,198.81,7.96]
[1756726410078,35.06,198.9,198.84,0.03514611]
[1756726410781,126.86,198.9,198.84,0.03514611]
[1756726410978,0.05,198.89,198.84,0.03514611]
[1756726411181,4.5259,198.86,198.84,0.03514611]
[1756726411578,4.5254,198.88,198.84,0.03514611]
[1756726411785,131.3054,198.88,198.84,0.03514611]
[1756726412184,4.5254,198.88,198.84,0.03514611]
[1756726413686,126.78,198.89,198.84,0.03514611]
[1756726413981,128.99885583,198.89,198.84,0.03514611]
[1756726414283,2.21885583,198.93,198.84,2.25400194]
[1756726414483,340.12885583,198.98,198.85,7.96]
[1756726414879,337.86,198.98,198.88,7.96]
[1756726415185,126.76,198.97,198.9,0.03309418]
[1756726417782,126.76,198.97,198.9,2.25195001]
[1756726418283,126.76,198.97,198.9,6.77665001]
[1756726418484,126.76,198.97,198.91,7.56]
[1756726418680,337.86,198.98,198.93,2.21885583]
[1756726418880,337.86,198.98,198.94,7.56]
[1756726419587,337.86,198.98,198.94,7.59752098]
[1756726419889,337.86,198.98,198.94,0.03752098]
[1756726420290,337.91,198.98,198.94,0.03752098]
[1756726420490,337.86,198.98,198.94,0.03752098]
[1756726421592,126.6,198.99,198.95,7.56]
[1756726422089,126.6,198.99,198.94,0.03752098]
[1756726422590,126.6,198.99,198.94,7.59752098]
[1756726422784,126.6,198.99,198.95,7.56]
[1756726422988,126.6,198.99,198.96,9.77885583]
[1756726424182,126.6,198.99,198.96,2.21885583]
[1756726424787,0.05,199.05,198.96,2.21885583]
[1756726425093,70.3241,199.08,198.9,2.21885583]
[1756726425094,119.66,199.04,198.99,2.21885583]
[1756726425492,119.71,199.04,198.99,2.25302807]
[1756726425689,119.66,199.04,198.99,0.03417224]
[1756726425890,0.05,199.03,198.99,0.03417224]
[1756726426194,119.66,199.04,198.99,0.03417224]
[1756726426384,0.05,199.03,198.99,0.03417224]
[1756726427495,119.71,199.04,198.99,0.03417224]
[1756726427789,0.05,199.04,198.99,0.03417224]
[1756726427996,126.46,199.03,198.99,0.03417224]
[1756726428197,126.51,199.03,198.99,0.03417224]
[1756726429891,0.05,199.02,198.99,0.03417224]
[1756726430099,126.46,199.03,198.99,0.03417224]
[1756726430392,2.26885583,199.02,198.99,0.03417224]
[1756726430798,0.05,199.01,198.99,0.03417224]
[1756726430998,2.21885583,199.02,198.99,0.03417224]
[1756726431299,0.05,199.01,198.99,0.03417224]
[1756726431494,2.21885583,199.02,198.99,0.03417224]
[1756726431695,0.05,199.01,198.99,0.03417224]
[1756726431899,2.21885583,199.02,198.99,0.03417224]
[1756726432094,0.05,199.01,198.99,0.03417224]
[1756726432298,2.21885583,199.02,198.99,0.03417224]
[1756726432998,0.05,199.01,198.99,0.03417224]
[1756726433203,2.21885583,199.02,198.99,0.03417224]
[1756726433400,0.05,199.04,198.99,0.03417224]
[1756726433601,91.66,199.04,198.99,0.03417224]
[1756726434199,2.21885583,199.02,198.99,0.03417224]
[1756726434995,128.59885583,199.08,198.99,0.03417224]
[1756726435396,0.05,199.07,199.0,4.55755169]
[1756726435597,0.05,199.07,199.01,4.55755169]
[1756726435794,128.59885583,199.08,198.99,0.03417224]
[1756726435795,128.59885583,199.08,199.02,4.55755169]
[1756726435996,128.59885583,199.08,199.03,4.55755169]
[1756726436198,0.05,199.07,199.04,4.55755169]
[1756726436500,128.59885583,199.08,199.04,0.0324052]
[1756726436701,0.05,199.07,199.05,4.55718291]
[1756726436903,0.05,199.07,199.04,0.0324052]
[1756726437099,0.05,199.07,199.05,4.55726287]
[1756726437301,0.05,199.07,199.04,0.0324052]
[1756726437501,0.05,199.07,199.05,4.55649345]
[1756726437701,0.05,199.07,199.04,0.0324052]
[1756726437901,128.59885583,199.08,199.05,4.55767637]
[1756726438104,128.59885583,199.08,199.04,0.0324052]
[1756726438302,128.59885583,199.08,199.05,4.55679198]
[1756726438502,2.21885583,199.1,199.04,0.0324052]
[1756726438705,126.25,199.09,199.05,4.55703987]
[1756726438907,126.25,199.09,199.04,0.0324052]
[1756726439104,0.05,199.17,199.07,9.77885583]
[1756726439303,0.05,199.21,199.1,2.21885583]
[1756726439506,0.87414124,199.18,199.11,4.55705191]
[1756726439708,0.87414124,199.18,199.12,4.55705191]
[1756726440006,0.87414124,199.18,199.14,0.03477945]
[1756726440197,0.87414124,199.18,199.15,4.55705191]
[1756726440399,126.16,199.17,199.16,4.55705191]
[1756726441606,0.91165646,199.18,199.16,4.55705191]
[1756726441902,126.1,199.17,199.14,0.03477945]
[1756726442103,0.03751522,199.18,199.14,0.03477945]
[1756726442104,0.03751522,199.18,199.15,4.81218734]
[1756726442403,0.03751522,199.18,199.16,12.37218734]
[1756726442613,0.03751522,199.18,199.17,4.81218734]
[1756726443808,0.03751522,199.18,199.17,4.80239977]
[1756726444008,0.03751522,199.18,199.17,12.36239977]
[1756726444206,337.84,199.23,199.17,15.91429796]
[1756726444500,337.84,199.23,199.2,3.55189819]
[1756726444701,3.55189819,199.34,199.21,4.80239977]
[1756726444901,0.08,199.32,199.22,4.80239977]
[1756726445110,0.87362555,199.31,199.23,4.80239977]
[1756726445415,0.87362555,199.31,199.25,0.03765045]
[1756726445807,126.06,199.3,199.25,0.03765045]
[1756726446309,126.08,199.29,199.26,4.79115346]
[1756726446508,126.08,199.29,199.25,7.59765045]
[1756726446709,0.87362555,199.31,199.26,4.79046549]
[1756726446905,126.06,199.3,199.27,4.79046549]
[1756726447101,126.06,199.3,199.26,7.56]
[1756726447312,337.74,199.36,199.27,4.80480641]
[1756726447512,126.02,199.35,199.28,4.80480641]
[1756726447813,126.89340628,199.35,199.29,4.80480641]
[1756726448013,0.08,199.34,199.3,0.03225146]
[1756726448207,126.89340628,199.35,199.3,0.03225146]
[1756726448208,0.95340628,199.35,199.3,0.03225146]
[1756726448407,126.0,199.34,199.24,11.64189819]
[1756726448607,126.0,199.34,199.25,4.79485711]
[1756726448912,126.0,199.34,199.31,0.03852391]
[1756726449114,0.87340628,199.35,199.31,0.03852391]
[1756726449308,125.96,199.34,199.25,8.09]
[1756726449503,125.96,199.34,199.26,4.78958174]
[1756726449708,125.96,199.34,199.31,0.03786612]
[1756726450715,0.08,199.33,199.31,0.03786612]
[1756726450906,125.96,199.34,199.31,0.03786612]
[1756726451809,126.04,199.34,199.31,0.03786612]
[1756726452015,125.96,199.34,199.31,0.03786612]
[1756726452311,0.08,199.33,199.31,0.03786612]
[1756726453617,0.58,199.33,199.31,0.03786612]
[1756726453819,0.04,199.33,199.19,11.64189819]
[1756726454118,0.04,199.33,199.2,4.78494755]
[1756726454313,0.04,199.33,199.21,4.78473391]
[1756726454517,0.04,199.33,199.22,4.78473391]
[1756726454816,0.04,199.33,199.23,4.78473391]
[1756726455115,125.78,199.32,199.24,4.78473391]
[1756726455310,125.78,199.32,199.25,4.78473391]
[1756726455516,125.78,199.32,199.26,4.81935288]
[1756726455712,0.04,199.31,199.27,4.78473391]
[1756726456015,0.04,199.31,199.28,4.78473391]
[1756726456212,0.04,199.31,199.26,0.03461897]
[1756726456413,0.04,199.31,199.27,4.7848898]
[1756726456613,0.04,199.31,199.28,4.7848898]
[1756726456813,125.78,199.32,199.29,4.78446345]
[1756726457019,125.78,199.32,199.26,0.03461897]
[1756726457313,125.78,199.32,199.27,4.78349278]
[1756726457314,0.04,199.31,199.27,4.78349278]
[1756726457518,0.04,199.31,199.28,4.78349278]
[1756726457816,0.04,199.31,199.26,0.03461897]
[1756726458018,0.04,199.31,199.27,4.78517348]
[1756726458219,125.78,199.32,199.28,4.78517348]
[1756726458519,0.04,199.32,199.29,4.78517348]
[1756726458720,125.64,199.31,199.3,4.78517348]
[1756726459116,0.04,199.32,199.3,4.78517348]
[1756726459321,125.62,199.31,199.26,0.03461897]
[1756726459516,125.62,199.31,199.27,4.78688593]
[1756726459714,125.62,199.31,199.28,4.78688593]
[1756726459915,125.62,199.31,199.29,4.78688593]
[1756726460210,125.62,199.31,199.26,0.03461897]
[1756726460211,125.66,199.31,199.26,0.03461897]
[1756726460414,0.04,199.3,199.27,4.78623]
[1756726460613,0.04,199.3,199.28,4.78623]
[1756726460817,0.04,199.3,199.29,4.78623]
[1756726461116,125.62,199.31,199.29,4.78623]
[1756726461321,125.62,199.31,199.3,4.78623]
[1756726462212,125.66,199.31,199.3,4.78623]
[1756726463215,125.62,199.31,199.3,4.78623]
[1756726464217,4.42530447,199.35,199.3,4.78623]
[1756726464421,125.52,199.34,199.31,4.78623]
[1756726464822,125.52,199.34,199.31,0.03289286]
[1756726467927,125.48,199.34,199.31,0.03289286]
[1756726468421,0.87340628,199.35,199.31,0.03289286]
[1756726468618,125.28,199.34,199.32,4.78961368]
[1756726468825,125.28,199.34,199.33,4.78961368]
[1756726469820,125.62,199.34,199.33,4.78961368]
[1756726472136,337.74,199.36,199.33,4.78961368]
[1756726472433,337.74,199.36,199.34,4.78961368]
[1756726472735,125.52,199.35,199.31,0.03289286]
[1756726472932,337.74,199.36,199.32,4.78955876]
[1756726472933,125.5,199.34,199.32,4.78955876]
[1756726473132,125.5,199.34,199.33,4.78955876]
[1756726473534,337.74,199.36,199.33,12.87955876]
[1756726473733,125.46,199.35,199.34,4.78955876]
[1756726474340,125.44,199.35,199.34,4.78955876]
[1756726474539,125.42,199.35,199.34,4.78955876]
[1756726475036,337.74,199.36,199.34,4.78955876]
[1756726475233,125.38,199.35,199.31,0.03289286]
[1756726475433,125.38,199.35,199.32,12.88371945]
[1756726475636,125.38,199.35,199.33,4.79371945]
[1756726475936,125.38,199.35,199.34,4.79371945]
[1756726476138,337.74,199.36,199.34,4.79371945]
[1756726476337,125.46,199.35,199.32,8.09]
[1756726476635,125.46,199.35,199.33,4.79832946]
[1756726476838,125.46,199.35,199.34,12.88832946]
[1756726477036,125.42,199.35,199.34,4.79832946]
[1756726478242,337.74,199.36,199.34,4.79832946]
[1756726478537,337.74,199.36,199.35,4.79832946]
[1756726478738,463.1,199.36,199.35,4.79832946]
[1756726482645,463.12,199.36,199.35,4.79832946]
[1756726482849,464.4932967,199.36,199.35,4.76832946]
[1756726483049,464.4732967,199.36,199.31,0.03289286]
[1756726483244,2.21612276,199.33,199.31,0.03289286]
[1756726483546,125.34,199.32,199.31,0.03289286]
[1756726486449,338.6132967,199.36,199.31,0.03289286]
[1756726486651,125.2,199.35,199.31,0.03289286]
[1756726487951,2.21612276,199.33,199.31,0.03289286]
[1756726488149,125.2,199.32,199.31,0.03289286]
[1756726490646,338.6132967,199.36,199.31,0.03289286]
[1756726490950,125.48,199.35,199.31,0.03289286]
[1756726491458,0.8732967,199.36,199.31,0.03289286]
[1756726491652,125.46,199.35,199.31,7.64289286]
[1756726491952,125.46,199.35,199.31,0.03289286]
[1756726494452,339.53612276,199.41,199.32,7.61]
[1756726494645,125.38,199.4,199.32,7.61]
[1756726494844,126.25318713,199.4,199.32,7.61]
[1756726495046,126.25318713,199.4,199.33,4.73929562]
[1756726495242,126.25318713,199.4,199.34,4.73929562]
[1756726495448,126.25318713,199.4,199.35,4.73929562]
[1756726495648,2.21612276,199.39,199.36,4.73929562]
[1756726495850,2.21612276,199.39,199.37,4.73929562]
[1756726496051,2.21612276,199.39,199.38,4.73929562]